Cogmind - Beta 16 --- EXPLORER MODE // 2025.11.17 @ 12:13:55 Player: K.K.Y. Result: Destroyed by L-41 Fighter with Axe Performance ------------- Evolutions (0) 0 Regions Visited (3) 600 Robots Destroyed (36) 180 Value Destroyed (1013) 1013 Prototype IDs (15) 300 Alien Tech Used (0) 0 Bonus (0) 0 TOTAL SCORE: 2093 Bonus ------- None Cogmind --------- Core Integrity 0/250 Matter 295/300 Energy 31/100 System Corruption 4% Temperature Danger (488) Movement Core (350) Ox6 Location -7/Recycling Parts ------- > --- POWER (1) -------- (None) > --- PROPULSION (3) --- Spiked Treads > --- UTILITY (2) ------ Medium Storage Unit Makeshift Light Armor Plating > --- WEAPON (2) ------- Autobeam > --- INVENTORY (10) --- Huge Storage Unit Weight Redist. System Transport Network Coupler Scrap Shield Barrage Gun Datajack Welding Torch Makeshift Sword Peak State ------------ > --- POWER ------------ Light Ion Engine Improved Ion Engine > --- PROPULSION ------- Spiked Treads Spiked Treads Spiked Treads > --- UTILITY ---------- Medium Storage Unit Makeshift Light Armor Plating > --- WEAPON ----------- Powered Cannon > --- INVENTORY -------- Huge Storage Unit Weight Redist. System Transport Network Coupler Scrap Shield Autobeam Barrage Gun Datajack Welding Torch Makeshift Sword [Rating: 29] Favorites ----------- Power Improved Ion Engine Engine Improved Ion Engine Propulsion Light Treads Treads Light Treads Utility Medium Storage Unit Storage Medium Storage Unit Protection Light Armor Plating Weapon Powered Cannon Energy Gun Beam Rifle Energy Cannon Powered Cannon Ballistic Gun Light Assault Rifle Special Weapon Mining Laser Build | -11 -10 -10 -7 ------- Run | Yrd Mat Sub Rec Slots Evolved 1 | . 1 . . Power . | . . . . Propulsion 1 | . 1 . . Utility . | . . . . Weapon . | . . . . Parts Attached 25 | 7 2 15 1 Power 3 | 1 . 2 . Engine 3 | 1 . 2 . Core . | . . . . Reactor . | . . . . Propulsion 9 | 2 1 6 . Treads 9 | 2 1 6 . Leg . | . . . . Wheel . | . . . . Hover . | . . . . Flight . | . . . . Utility 5 | 2 . 3 . Device . | . . . . Storage 1 | 1 . . . Processor . | . . . . Hackware . | . . . . Protection 4 | 1 . 3 . Artifact . | . . . . Weapon 8 | 2 1 4 1 Energy Gun 4 | 2 . 1 1 Energy Cannon 1 | . . 1 . Ballistic Gun 2 | . . 2 . Ballistic Cannon . | . . . . Launcher . | . . . . Special Weapon 1 | . 1 . . Impact Weapon . | . . . . Slashing Weapon . | . . . . Piercing Weapon . | . . . . Special Melee Weapon . | . . . . Unidentified Prototypes . | . . . . Parts Lost 11 | . . 9 2 Power 1 | . . 1 . Propulsion 3 | . . 2 1 Utility 2 | . . 2 . Weapon 5 | . . 4 1 Highest Loss Streak 5 | . . 5 2 To Critical Strikes . | . . . . Average Backups 7 | 3 3 8 8 Power . | . . . . Propulsion . | . . . . Utility 4 | 1 2 4 4 Weapon 1 | 1 . 1 2 Tool/Special . | . . . . Unused Backups 8 | . . . 8 Power . | . . . . Propulsion . | . . . . Utility 4 | . . . 4 Weapon 2 | . . . 2 Tool/Special 2 | . . . 2 Average Slot Usage (%) 86 | . 94 85 73 Engine 14 | . 12 14 9 Treads 33 | . 34 33 31 Storage 11 | . 12 11 11 Protection 8 | . 11 8 11 Energy Gun 7 | . 23 4 2 Energy Cannon 4 | . . 5 8 Ballistic Gun 4 | . . 5 . Peak Build Rating 29 | 7 8 29 27 Average Rating 16 | 3 7 18 23 On Entrance 10 | . 7 7 27 Avg Prop Armor Cover (%) 12 | . . . 12 Naked Turns . | . . . . Heaviest Build 33 | 22 22 33 26 Greatest Support 60 | 40 60 60 60 Greatest Overweight (x) 6 | . . . 6 Average Overweight (x) . | . . . . Largest Inventory Capacity 10 | 10 10 10 10 Average Capacity 9 | 6 10 10 10 Most Carried 10 | 5 10 10 10 Average Carried 8 | 3 3 9 9 Final Capacity 10 | 10 10 10 10 Final Carried 10 | 1 10 10 9 Class Distribution -------------------- 79% | Hacker-Mutant 20% | Scavenger-Mutant Dominant Class ---------------- Hacker-Mutant | -10/Materials Hacker-Mutant | -10/Subcaves Hacker-Mutant | -7/Recycling Resources | -11 -10 -10 -7 ----------- Run | Yrd Mat Sub Rec Matter Collected 582 | 203 96 276 7 Remotely . | . . . . Salvage Created 1332 | . 495 714 123 Parts 83 | . 28 45 10 Haulers Intercepted 2 | . 2 . . Recyclers Shooed . | . . . . Parts Field Recycled . | . . . . Retrieved Matter . | . . . . Parts Self-Destructed . | . . . . Prevented . | . . . . Parts Restored . | . . . . Kills | -11 -10 -10 -7 ------- Run | Yrd Mat Sub Rec Combat Hostiles Destroyed 27 | . 8 18 1 Guns 15 | . 6 9 . Cannons 10 | . . 9 1 AOE 2 | . 2 . . Classes Destroyed 9 | . 6 2 1 Worker 1 | . 1 . . Hauler 2 | . 2 . . Recycler 2 | . 1 . 1 Turret 2 | . . 2 . Watcher 2 | . 2 . . Swarmer 6 | . 2 4 . Grunt 6 | . 6 . . Sentry 1 | . . . 1 Subdweller 14 | . . 14 . Best Kill Streak 4 | . 3 4 1 Combat Bots Only 4 | . 2 4 1 Max Kills in Single Turn 2 | . 2 1 1 Gunslinging . | . . . . Exploded 1 | . 1 . . Melee . | . . . . Uniques/NPCs Destroyed . | . . . . Combat | -11 -10 -10 -7 -------- Run | Yrd Mat Sub Rec Hostile Shots Fired 325 | . 47 151 127 Missed 120 | . 15 56 49 Hits 205 | . 32 95 78 Melee 8 | . . . 8 Projectile 197 | . 32 95 70 Critical Strikes 7 | . 1 2 4 Part Disruptions 2 | . . . 2 Damage Taken 2122 | . 273 1297 552 Core 263 | . 20 157 86 Absorbed by Shields . | . . . . Ignored by Resistances 1200 | . 179 660 361 Core Remaining (%) 100 | 100 . . . Volleys Fired 161 | . 30 125 6 Largest 2 | . 2 2 1 Hottest 156 | . 90 156 40 Shots Fired 231 | . 57 166 8 Gun 172 | . 57 113 2 Cannon 55 | . . 49 6 Launcher . | . . . . Special 4 | . . 4 . Kinetic 65 | . . 65 . Thermal 128 | . 27 93 8 Explosive . | . . . . Electromagnetic 38 | . 30 8 . Robot Hit Streak 66 | . 37 66 8 Robot Miss Streak 3 | . 3 1 3 Penetration Max . | . . . . Secondary Targets 2 | . 1 1 . Max Gunslinging Chain 1 | . 1 1 . Autonomous 11 | . . . 11 Shots Hit Robots 155 | . 45 103 7 Core Hits 57 | . 23 32 2 Critical Kills . | . . . . Critical Parts Destroyed . | . . . . Critical Strikes 6 | . 4 2 . Burn 6 | . 4 2 . Melee Attacks . | . . . . Impact . | . . . . Slashing . | . . . . Piercing . | . . . . Sneak Attacks . | . . . . Combat Hostiles . | . . . . Follow-up Attacks . | . . . . Damage Inflicted 3559 | . 872 2344 343 Guns 1472 | . 595 870 7 Cannons 1733 | . . 1397 336 Explosions 271 | . 271 . . Melee . | . . . . Ramming 11 | . 6 5 . Kinetic 335 | . . 335 . Thermal 2788 | . 522 1923 343 Explosive . | . . . . Electromagnetic 425 | . 344 81 . Impact . | . . . . Slashing . | . . . . Piercing . | . . . . Highest Corruption 4 | . . 2 4 Average Corruption 2 | . . 2 2 Corruption Purged . | . . . . Corruption Blocked . | . . . . Effects 10 | . . 8 2 Message Errors 5 | . . 4 1 Matter Fused 1 | . . . 1 Heat Flow Errors 2 | . . 2 . Energy Discharges 1 | . . 1 . Misfires 1 | . . 1 . Overload Shots . | . . . . Overflow Damage 87 | . . 57 30 Projectiles 87 | . . 57 30 Explosions . | . . . . Melee . | . . . . Knockbacks . | . . . . Impact . | . . . . Kinetic . | . . . . Secondary . | . . . . Self-Inflicted Damage 73 | . 73 . . Shots 3 | . 3 . . Rammed 4 | . 1 3 . Targets Rammed 4 | . 1 3 . Kicked . | . . . . Crushed . | . . . . Highest Temperature 488 | . 295 181 488 Average Temperature 75 | . 89 32 160 Received Heat Transfer 735 | . 114 579 42 Effects 1 | . . . 1 Energy Bleed 1 | . . . 1 Siege Activations . | . . . . Martial Activations . | . . . . Shielding Activations . | . . . . Robots Disrupted . | . . . . Combat Hostiles . | . . . . Robots Corrupted . | . . . . Combat Hostiles . | . . . . Parts Fried 1 | . 1 . . Impact Corruptions . | . . . . Robots Melted . | . . . . Combat Hostiles . | . . . . Parts Melted 3 | . 2 1 . Heat Transferred 2843 | . 1336 1482 25 Parts Sabotaged . | . . . . Parts Stolen . | . . . . Parts Stripped . | . . . . Power Chain Reactions 4 | . 4 . . Alert | -11 -10 -10 -7 ------- Run | Yrd Mat Sub Rec Maximum Alert Level . | . . . . Low Security (%) 100 | 100 100 . 100 Level 1 . | . . . . Level 2 . | . . . . Level 3 . | . . . . Level 4 . | . . . . Level 5 . | . . . . High Security . | . . . . Max Security . | . . . . Peak Influence 58 | . 58 . 20 Initial . | . . . . Average 5 | . 5 . 4 Influence Increases 479 | . 274 180 25 Destroy 0b10 Robot/C 300 | . 160 120 20 Destroy 0b10 Robot/NC 35 | . 30 . 5 Destroy Leader 38 | . 38 . . Successful Hack 12 | . 12 . . Destroy Structure 19 | . 19 . . Lose Combat Pursuer 75 | . 15 60 . Influence Decreases 479 | . 274 180 25 Time Decay 424 | . 234 170 20 Lost Part 15 | . . 10 5 Purge Threat 40 | . 40 . . Squads Dispatched 1 | . 1 . . Investigation 1 | . 1 . . Extermination . | . . . . Reinforcement . | . . . . Assault . | . . . . Garrison . | . . . . Intercept . | . . . . Searches Triggered . | . . . . Construction Impeded . | . . . . Haulers Reinforced . | . . . . Active Scanning Responses . | . . . . Cargo Convoy Interrupts . | . . . . Stealth | -11 -10 -10 -7 --------- Run | Yrd Mat Sub Rec Distress Signals 1 | . 1 . . Communications Jammed . | . . . . Distress Signals . | . . . . Times Spotted 42 | . 15 22 5 Peak Tracking Total 6 | . 4 6 4 Tactical Retreats 3 | . 1 2 . Traps | -11 -10 -10 -7 ------- Run | Yrd Mat Sub Rec Traps Triggered 5 | . 4 1 . Indirectly . | . . . . Trap Hack Attempts . | . . . . Triggered . | . . . . Disarmed . | . . . . Reprogrammed . | . . . . Reused . | . . . . Traps Extracted . | . . . . Installed . | . . . . Triggered . | . . . . Machines | -11 -10 -10 -7 ---------- Run | Yrd Mat Sub Rec Machines Disabled 2 | . . 2 . Max in Single Turn 1 | . . 1 . Machines Repaired . | . . . . Machines Dismantled . | . . . . Machines Sabotaged . | . . . . Overloaded Fab Kills . | . . . . Hacking | -11 -10 -10 -7 --------- Run | Yrd Mat Sub Rec Machines Accessed 9 | . 7 2 . Terminals 7 | . 7 . . Fabricators . | . . . . Repair Stations . | . . . . Recycling Units . | . . . . Scanalyzers . | . . . . Garrison Access . | . . . . Total Hacks 27 | . 22 5 . Successful 21 | . 16 5 . Failed 6 | . 6 . . Catastrophic . | . . . . Database Lockouts . | . . . . Manual 3 | . 3 . . Terminals 22 | . 22 . . Fabricators . | . . . . Repair Stations . | . . . . Recycling Units . | . . . . Scanalyzers . | . . . . Garrison Access . | . . . . Terminal Hacks 21 | . 16 5 . Record 4 | . . 4 . Prototype ID Bank 3 | . 3 . . Branch Access Points 1 | . 1 . . Emergency Access Points 3 | . 3 . . Unreport Threat 2 | . 2 . . Locate Traps 3 | . 3 . . Registered Prototypes 1 | . 1 . . Zone Layout 3 | . 3 . . Proto ID Catalog 1 | . . 1 . Fabricator Hacks . | . . . . Repair Station Hacks . | . . . . Recycling Unit Hacks . | . . . . Scanalyzer . | . . . . Garrison Access Hacks . | . . . . Unauthorized Hacks . | . . . . Terminals . | . . . . Fabricators . | . . . . Repair Stations . | . . . . Recycling Units . | . . . . Scanalyzers . | . . . . Garrison Access . | . . . . Data Cores Recovered . | . . . . Used . | . . . . Hacking Detections 4 | . 4 . . Full Trace Events 4 | . 4 . . Feedback Events . | . . . . Feedback Blocked . | . . . . Robot Schematics Acquired . | . . . . Robots Built . | . . . . Authchips . | . . . . Time . | . . . . Total Robot Build Rating . | . . . . Part Schematics Acquired . | . . . . Parts Built . | . . . . Authchips . | . . . . Time . | . . . . Total Part Build Rating . | . . . . Part Studies Acquired . | . . . . Parts Repaired . | . . . . Time . | . . . . Parts Recycled . | . . . . Recycled Matter . | . . . . Retrieved Matter . | . . . . Retrieved Components . | . . . . Parts Scanalyzed . | . . . . Part Schematics Acquired . | . . . . Parts Damaged . | . . . . Bothacking | -11 -10 -10 -7 ------------ Run | Yrd Mat Sub Rec Used RIF Installer . | . . . . Robots Hacked . | . . . . Non-combat . | . . . . Combat . | . . . . Robot Hacks Applied . | . . . . Relay Couplers Released . | . . . . Fabnet Peak Effective % . | . . . . Robots Rewired . | . . . . Allies Hacked . | . . . . Hacks Repelled . | . . . . Allies | -11 -10 -10 -7 -------- Run | Yrd Mat Sub Rec Total Allies . | . . . . Largest Group . | . . . . Highest-Rated Group . | . . . . Highest-Rated Ally . | . . . . Total Orders . | . . . . Ally Attacks . | . . . . Total Damage . | . . . . Kills . | . . . . Allies Corrupted . | . . . . Allies Melted . | . . . . Intel | -11 -10 -10 -7 ------- Run | Yrd Mat Sub Rec Active Infowar (turns) . | . . . . Robot Analysis Total . | . . . . Derelict Logs Recovered 2 | . . 2 . Drone Launches . | . . . . Drone Recoveries . | . . . . Exploration | -11 -10 -10 -7 ------------- Run | Yrd Mat Sub Rec Turns Passed 6972 | 74 1162 5640 96 Spaces Moved 3837 | 46 613 3127 51 Core 12 | 11 . . 1 Treads 3825 | 35 613 3127 50 Legs . | . . . . Wheels . | . . . . Hover . | . . . . Flight . | . . . . Fastest Speed 50 | 50 160 160 160 Average Speed 159 | 133 160 160 163 Slowest Speed 350 | 160 160 160 350 Overloaded Moves . | . . . . Propulsion Burnouts . | . . . . Robots Hopped . | . . . . Potential Cave-ins 2 | . . 2 . Cave-ins Triggered 1 | . . 1 . Exploration Rate (%) 51 | 5 89 98 14 Regions Visited 3 Branch Regions 2 Pre-discovered Areas 2 | . . 2 . Known Exits Taken 3 | 1 1 1 . Unknown Exits Taken . | . . . . Scrap Searched . | . . . . Spaces Dug 11 | . . 11 . Terrain Destroyed 31 | . 19 12 . Melee . | . . . . Projectile 12 | . . 12 . AOE 19 | . 19 . . Terrain Rammed . | . . . . Walls Destroyed . | . . . . Machines Disabled . | . . . . Actions | -11 -10 -10 -7 --------- Run | Yrd Mat Sub Rec Total 4461 | 57 737 3609 58 Wait 391 | . 76 315 . Move 3834 | 45 612 3126 51 Hop . | . . . . Pick Up 27 | 5 12 10 . Fast Attach 6 | 3 1 2 . Attach 18 | 4 4 9 1 Detach 2 | . 1 1 . Swap 9 | . . 9 . Drop 9 | . . 9 . Fire 161 | . 30 125 6 Melee . | . . . . Ram . | . . . . Kick . | . . . . Crush 4 | . 1 3 . Escape Stasis . | . . . . Rewire . | . . . . Trap . | . . . . Miscellaneous . | . . . . Route ------- -11/Scrapyard -10/Materials (discovered 5 exits: *Mat x3 / *Min / *Sub) -10/Subcaves (discovered 3 exits: *Mat x2 / *Rec) -7/Recycling History --------- Turn | Location | Event 7 | -11/Scrapyard | Identified exit to Materials 7 | -11/Scrapyard | Discovered exit to Materials (range 15) 75 | -11/Scrapyard | Entered Materials 75 | -10/Materials | Evolved 1 slot: Propulsion x1 275 | -10/Materials | Identified exit to Mines 309 | -10/Materials | Build established: Hacker-Mutant 374 | -10/Materials | Identified exit to Materials 374 | -10/Materials | Discovered exit to Materials (range 16) 597 | -10/Materials | Discovered exit to Materials (range 9) 823 | -10/Materials | Discovered exit to Materials (range 3) 1200 | -10/Materials | Identified exit to Subcaves 1200 | -10/Materials | Discovered exit to Subcaves (range 10) 1237 | -10/Materials | Entered Subcaves 1238 | -10/Subcaves | Approached by a straggling Scientist 1241 | -10/Subcaves | Ambushed by Subdwellers from Twisted Machinery 1422 | -10/Subcaves | Visited Clippyterm 1427 | -10/Subcaves | Learned Factory stockpile data 1427 | -10/Subcaves | Learned Research security intel 1999 | -10/Subcaves | Build established: Scavenger-Mutant 2641 | -10/Subcaves | Shifting Twisted Machinery released Scrap Shield 2646 | -10/Subcaves | Shifting Twisted Machinery released Sub. Monowheel 3109 | -10/Subcaves | Core integrity fell below 50% 3146 | -10/Subcaves | Lost 5 parts (1n1u3w) 3197 | -10/Subcaves | Shifting Twisted Machinery released Spk. Treads 3249 | -10/Subcaves | Shifting Twisted Machinery released Mak. Sword 3366 | -10/Subcaves | Curiously followed by a Cobbler waking with a query about "LVR3C" 3395 | -10/Subcaves | Identified exit to Materials 3395 | -10/Subcaves | Discovered exit to Materials (range 5) 3418 | -10/Subcaves | Build established: Hacker-Mutant 3942 | -10/Subcaves | Learned location of Storage (-7) 3958 | -10/Subcaves | Visited 4L-MR0's lab 3972 | -10/Subcaves | Found Powered Cannon 3974 | -10/Subcaves | Attached Powered Cannon, gained temporary slot: Power 4444 | -10/Subcaves | Identified exit to Recycling 4444 | -10/Subcaves | Discovered exit to Recycling (range 16) 4720 | -10/Subcaves | Shifting Twisted Machinery released Piercing Trap 4744 | -10/Subcaves | Shifting Twisted Machinery released Spk. Treads 4896 | -10/Subcaves | A swath of the cavern ceiling suddenly collapsed 5059 | -10/Subcaves | Discovered exit to Materials (range 10) 6109 | -10/Subcaves | Crushed by falling debris 6877 | -10/Subcaves | Entered Recycling 6938 | -7/Recycling | Core integrity fell below 20% 6973 | -7/Recycling | Destroyed by L-41 Fighter with Axe Last Messages --------------- 06937_ K-01 Serf destroyed. 06938_ R-06 Scavenger collects Mining Laser. 06939_ Acquired 7 matter. 06939_ S-27 Virus destroyed. 06941_ R-06 Scavenger destroyed. 06941_ R-06 Scavenger collects Terrain Scanner. 06942_ R-06 Scavenger collects Tractor Beam. 06943_ R-06 Scavenger destroyed. 06944_ R-06 Scavenger collects Lgt. Treads. 06949_ Powered Cannon destroyed. 06951_ Temporary Power slot lost. 06952_ Spk. Treads severed. 06957_ R-06 Scavenger collects Lgt. Ion Engine. 06959_ Chain reaction triggered in Imp. Deuterium Engine. 06959_ Y-54 Guardian destroyed. 06970_ Y-54 Guardian springs to life. 06970_ Spk. Treads destroyed. 06971_ R-06 Scavenger collects Com. Wheel. 06972_ Overheating: Energy bleed (-3). Map ----- +----------------------------------------------------+ | ????????????????"?"??????# #???????? | | ????????????####"Y"#######+##+############???????? | | ??????????? #?????????????? | | ??????????????????# #?????????????? | | ??????????????????# #?????????????? | | ??????????????????# ##### ########?????????????? | | ??????????????#####+##### %#???????????????????? | | ??????????????# ! # ##???????????????????? | | ??????????????# ! =|!! # #????????????????????? | | ??????????????+ !%! # #????????????????????? | | ??????????????# =* /% #????????????????????? | | ??????????????# / %#r #????????????????????? | | ??????????????# % *" #????????????????????? | | ???????? + % ]"*p + ???????????????????? | | ??????# # !] ["% # ?????????????????? | | ??????# ??#####+####"! #? ????????????????? | | ??????# ??????????????# #?? ??????????????? | | ??????# ????????????????# #??? ?????????????? | | ???????????? ##????????# #???? ????????????? | | ??????????? ??????# #????? ????????????? | | ??????????? ?????# #??????#?????????????? | | ?????????? ##### #????????????????????? | | ?????????? Y #????????????????????? | | ?????????? #????????????????????? | | ?????????? l #????????????????????? | | ???????????##############@ #????????????????????? | | ????????????????????????# Y#???????????????????? | | ????????????????????????# ##???????????????????? | | ????????????????????????# #????????????????????? | | ????????????????????????# ????????????????????? | | ????????????????????????+ ???????????????????? | | ????????????????????????# ??????????????????? | | ????????????????????????# ?????????????????? | | ????????????????????????# #????????????????? | | ????????????????????????? #????????????????? | | ????????????????????????? ????????????????? | | ????????????????????????? ???????????????? | | ????????????????????????? ###??????????????? | | ????????????????????????? #????????????????? | | ????????????????????????? ???????????????????? | | ????????????????????????? ?????????????????????? | | ?????????????????????????????????????????????????? | | ?????????????????????????????????????????????????? | | ?????????????????????????????????????????????????? | | ?????????????????????????????????????????????????? | | ?????????????????????????????????????????????????? | | ?????????????????????????????????????????????????? | | ?????????????????????????????????????????????????? | | ?????????????????????????????????????????????????? | | ?????????????????????????????????????????????????? | +----------------------------------------------------+ Best States ------------- Heat Dissipation 25 Energy Generation 17 Energy Capacity 290 Matter Stores 300 Matter Capacity 300 Sight Range 16 Terrain Scan Density 10 Armor Coverage 150 Resistance: KI 35 Resistance: TH 35 Resistance: EX 35 Resistance: EM 35 Resistance: I 35 Resistance: S 35 Resistance: P 35 Evasion (%) 50 Recoil Reduction 3 Offensive Hacking 20 Item Schematics ----------------- None Robot Schematics ------------------ None Fabricated ------------ Nothing Repaired ---------- Nothing Studied --------- None Alien Tech Used ----------------- None Achievements -------------- None Challenges ------------ None Game ------ Seed NullMakeshiftThrower Manual? 0 Play Time 00:23:43 Cumulative 100.9 hours Start 2025.11.17 @ 11:51:08 End 2025.11.17 @ 12:13:55 Sessions 1 Manual Loads 0 Difficulty Explorer Special Mode None Game No. 116 Rogue 0 Adventurer 0 Explorer 116 Win Type - Total 0 Types 0/0/0/0/0/0/0/0/0/0 Lore% 60 Gallery% 60 Achievement% 46 Wizard Run 0 Options --------- Layout 1 ASCII 0 Keyboard 0 Movement Mouse Keybinds 0 Fullscreen 1 Font 24/Smallcaps Map View 50x35 Zoom Use 0% Tactical HUD 1 Map Filters NONE Filters NONE Steam 1 RUN: 65cacc33-66fd-423c-ab76-ade1b4531096